fUST/lending_fUST_20241229
["ID","MTS","AMOUNT","RATE_DAILY","PERIOD"]
[346965127,1735434646939,-500.0,0.00018475,2]
[346965128,1735434646948,-500.0,0.00018475,2]
[346965129,1735434646958,-194.486121,0.00018475,2]
[346965130,1735434646970,-194.486121,0.00018475,2]
[346965131,1735434646979,-500.0,0.00018475,2]
[346965132,1735434646988,-15672.79,0.00018475,2]
[346965133,1735434646997,-567.83913,0.00018475,2]
[346965134,1735434647007,-500.0,0.00018475,2]
[346965135,1735434647016,-567.83913,0.00018475,2]
[346965136,1735434647027,-500.0,0.00018475,2]
[346965137,1735434647038,-453.644057,0.00018475,2]
[346965138,1735434647048,-500.0,0.00018475,2]
[346965139,1735434647056,-500.0,0.00018475,2]
[346965140,1735434647066,-453.644057,0.00018475,2]
[346965141,1735434647075,-500.0,0.00018475,2]
[346965142,1735434647084,-500.0,0.00018475,2]
[346965143,1735434647093,-151.0,0.00018475,2]
[346965144,1735434647102,-500.0,0.00018475,2]
[346965145,1735434647112,-500.0,0.00018476,2]
[346965146,1735434647121,-500.0,0.00018476,2]
[346965147,1735434647130,-500.0,0.00018476,2]
[346965148,1735434647139,-500.0,0.00018476,2]
[346965149,1735434647149,-500.0,0.00018476,2]
[346965150,1735434647159,-500.0,0.00018476,2]
[346965151,1735434647168,-575.63,0.00018476,2]
[346965152,1735434647236,-500.0,0.00018476,2]
[346965153,1735434647246,-500.0,0.00018476,2]
[346965154,1735434647255,-500.0,0.00018476,2]
[346965155,1735434647264,-500.0,0.00018476,2]
[346965156,1735434647273,-500.0,0.00018476,2]
[346965157,1735434647282,-500.0,0.00018476,2]
[346965158,1735434647292,-500.0,0.00018476,2]
[346965159,1735434647303,-560.5,0.00018476,2]
[346965160,1735434647313,-500.0,0.00018476,2]
[346965161,1735434647323,-500.0,0.00018476,2]
[346965162,1735434647332,-500.0,0.00018476,2]
[346965163,1735434647342,-500.0,0.00018476,2]
[346965164,1735434647352,-500.0,0.00018476,2]
[346965165,1735434647362,-500.0,0.00018476,2]
[346965166,1735434647373,-500.0,0.00018476,2]
[346965167,1735434647383,-500.0,0.00018476,2]
[346965168,1735434647392,-500.0,0.00018476,2]
[346965169,1735434647401,-500.0,0.00018476,2]
[346965170,1735434647411,-500.0,0.00018476,2]
[346965171,1735434647421,-500.0,0.00018476,2]
[346965172,1735434647431,-500.0,0.00018476,2]
[346965173,1735434647440,-950.37,0.00018476,2]
[346965174,1735434647449,-500.0,0.00018476,2]
[346965175,1735434647459,-500.0,0.00018476,2]
[346965176,1735434647468,-500.0,0.00018476,2]
[346965177,1735434647477,-500.0,0.00018476,2]
[346965178,1735434647488,-500.0,0.00018476,2]
[346965179,1735434647497,-500.0,0.00018476,2]
[346965180,1735434647507,-500.0,0.00018476,2]
[346965181,1735434647516,-549.30352517,0.00018476,2]
[346965182,1735434647524,-151.0,0.00018476,2]
[346965183,1735434647533,-500.0,0.00018476,2]
[346965184,1735434647542,-151.0,0.00018476,2]
[346965185,1735434647551,-500.0,0.00018476,2]
[346965186,1735434647561,-3706.1,0.00018476,2]
[346965187,1735434647570,-500.0,0.00018476,2]
[346965188,1735434647579,-500.0,0.00018476,2]
[346965189,1735434647588,-500.0,0.00018476,2]
[346965190,1735434647598,-449.88963054,0.00018476,2]
[346965191,1735434647608,-500.0,0.00018476,2]
[346965192,1735434647618,-204.76,0.00018476,2]
[346965193,1735434647627,-500.0,0.00018476,2]
[346965194,1735434647637,-286.28,0.00018476,2]
[346965195,1735434647646,-500.0,0.00018476,2]
[346965196,1735434647655,-500.0,0.00018476,2]
[346965197,1735434647664,-500.0,0.00018477,2]
[346965198,1735434647674,-500.0,0.00018477,2]
[346965199,1735434647683,-500.0,0.00018477,2]
[346965200,1735434647692,-151.0,0.00018477,2]
[346965201,1735434647702,-151.0,0.00018477,2]
[346965202,1735434647710,-151.0,0.00018477,2]
[346965203,1735434647720,-5769.07,0.00018477,2]
[346965204,1735434647729,-222.109153,0.00018477,2]
[346965205,1735434647738,-222.109153,0.00018477,2]
[346965206,1735434647748,-1024.17,0.00018477,2]
[346965207,1735434647757,-500.0,0.00018477,2]
[346965208,1735434647767,-500.0,0.00018477,2]
[346965209,1735434647776,-500.0,0.00018477,2]
[346965210,1735434647785,-500.0,0.00018477,2]
[346965211,1735434647794,-2849.24,0.00018477,2]
[346965212,1735434647803,-2136.13,0.00018478,2]
[346965213,1735434647813,-151.0,0.000185,2]
[346965214,1735434647822,-1775.03,0.000185,2]
[346965215,1735434647831,-4635.81,0.000185,2]
[346965216,1735434647840,-6432.92,0.000185,2]
[346965217,1735434647850,-151.0,0.000185,2]
[346965218,1735434647859,-151.0,0.000185,2]
[346965219,1735434647868,-500.0,0.00018521,2]
[346965220,1735434647877,-500.0,0.00018748,2]
[346965221,1735434647886,-500.0,0.00018748,2]
[346965222,1735434647895,-500.0,0.00018748,2]
[346965223,1735434647904,-1870.27,0.00018748,2]
[346965224,1735434647914,-500.0,0.00018748,2]
[346965225,1735434647924,-1201.7,0.00018748,2]
[346965226,1735434647933,-500.0,0.00018748,2]
[346965227,1735434647943,-500.0,0.00018748,2]
[346965228,1735434647953,-533.45,0.00018748,2]
[346965229,1735434647967,-500.0,0.00018748,2]
[346965230,1735434647976,-500.0,0.00018748,2]
[346965231,1735434647986,-730.7,0.00018748,2]
[346965232,1735434647996,-500.0,0.00018749,2]
[346965233,1735434648006,-500.0,0.00018749,2]
[346965234,1735434648015,-500.0,0.00018749,2]
[346965235,1735434648025,-500.0,0.00018749,2]
[346965236,1735434648035,-500.0,0.00018749,2]
[346965237,1735434648045,-512.91492531,0.00018749,2]
[346965238,1735434648054,-500.0,0.00018749,2]
[346965239,1735434648063,-500.0,0.00018749,2]
[346965240,1735434648072,-500.0,0.00018749,2]
[346965241,1735434648081,-500.0,0.00018749,2]
[346965242,1735434648090,-500.0,0.00018749,2]
[346965243,1735434648099,-500.0,0.00018749,2]
[346965244,1735434648108,-500.0,0.00018749,2]
[346965245,1735434648118,-500.0,0.00018749,2]
[346965246,1735434648127,-500.0,0.00018749,2]
[346965247,1735434648137,-500.0,0.00018749,2]
[346965248,1735434648146,-351.19,0.00018749,2]
[346965249,1735434648155,-588.19,0.00018749,2]
[346965250,1735434648165,-342.59447154,0.00018749,2]
[346965251,1735434648174,-500.0,0.00018749,2]
[346965252,1735434648183,-998.12,0.00018749,2]
[346965253,1735434648192,-500.0,0.00018749,2]
[346965254,1735434648202,-500.0,0.00018749,2]
[346965255,1735434648211,-500.0,0.00018749,2]
[346965256,1735434648220,-627.05,0.00018749,2]
[346965257,1735434648229,-516.57,0.00018749,2]
[346965258,1735434648239,-500.0,0.00018749,2]
[346965259,1735434648248,-500.0,0.00018749,2]
[346965260,1735434648258,-670.8,0.00018749,2]
[346965261,1735434648267,-500.0,0.00018749,2]
[346965262,1735434648276,-282.47,0.00018749,2]
[346965263,1735434648285,-500.0,0.00018749,2]
[346965264,1735434648294,-500.0,0.00018749,2]
[346965265,1735434648303,-500.0,0.00018749,2]
[346965266,1735434648313,-500.0,0.00018749,2]
[346965267,1735434648322,-500.0,0.00018749,2]
[346965268,1735434648331,-500.0,0.00018749,2]
[346965269,1735434648340,-500.0,0.00018749,2]
[346965270,1735434648349,-500.0,0.00018749,2]
[346965271,1735434648358,-207.69142252,0.00018749,2]
[346965272,1735434648367,-193.49848,0.00018749,2]
[346965273,1735434648376,-500.0,0.00018749,2]
[346965274,1735434648386,-193.49848,0.00018749,2]
[346965275,1735434648395,-151.0,0.00018749,2]
[346965276,1735434648404,-500.0,0.00018749,2]
[346965277,1735434648414,-500.0,0.00018749,2]
[346965278,1735434648482,-151.0,0.00018749,2]
[346965279,1735434648491,-500.0,0.00018749,2]
[346965280,1735434648500,-500.0,0.00018749,2]
[346965281,1735434648510,-645.94,0.00018749,2]
[346965282,1735434648519,-183.46362,0.00018749,2]
[346965283,1735434648528,-500.0,0.00018749,2]
[346965284,1735434648537,-1375.76,0.00018749,2]
[346965285,1735434648547,-183.46362,0.00018749,2]
[346965286,1735434648556,-500.0,0.00018749,2]
[346965287,1735434648565,-500.0,0.00018749,2]
[346965288,1735434648575,-151.0,0.00018749,2]
[346965289,1735434648585,-500.0,0.00018749,2]
[346965290,1735434648594,-151.0,0.00018749,2]
[346965291,1735434648603,-500.0,0.00018749,2]
[346965292,1735434648613,-500.0,0.00018749,2]
[346965293,1735434648622,-151.0,0.00018749,2]
[346965294,1735434648631,-500.0,0.00018749,2]
[346965295,1735434648640,-151.0,0.00018749,2]
[346965296,1735434648649,-500.0,0.00018749,2]
[346965297,1735434648659,-500.0,0.00018749,2]
[346965298,1735434648668,-500.0,0.00018749,2]
[346965299,1735434648677,-500.0,0.00018749,2]
[346965300,1735434648687,-194.486121,0.00018749,2]
[346965301,1735434648696,-194.486121,0.00018749,2]
[346965302,1735434648706,-500.0,0.00018749,2]
[346965303,1735434648716,-15672.79,0.00018749,2]
[346965304,1735434648725,-567.83913,0.00018749,2]
[346965305,1735434648735,-500.0,0.00018749,2]
[346965306,1735434648745,-567.83913,0.00018749,2]
[346965307,1735434648755,-500.0,0.00018749,2]
[346965308,1735434648764,-453.644057,0.00018749,2]
[346965309,1735434648773,-500.0,0.00018749,2]
[346965310,1735434648783,-500.0,0.00018749,2]
[346965311,1735434648792,-453.644057,0.00018749,2]
[346965312,1735434648802,-500.0,0.00018749,2]
[346965313,1735434648811,-503.52497012,0.00018749,2]
[346965314,1735434648821,-151.0,0.00018749,2]
[346965315,1735434648831,-500.0,0.00018749,2]
[346965316,1735434648840,-597.37,0.0001875,2]
[346965317,1735434648850,-499.69,0.0001875,2]
[346965318,1735434648859,-411.01,0.0001875,2]
[346965319,1735434648868,-500.0,0.0001875,2]
[346965320,1735434648877,-575.63,0.0001875,2]
[346965321,1735434648886,-500.0,0.0001875,2]
[346965322,1735434648896,-500.0,0.0001875,2]
[346965323,1735434648906,-500.0,0.0001875,2]
[346965324,1735434648916,-500.0,0.0001875,2]
[346965325,1735434648925,-500.0,0.0001875,2]
[346965326,1735434648935,-500.0,0.0001875,2]
[346965327,1735434648945,-560.5,0.0001875,2]
[346965328,1735434648955,-500.0,0.0001875,2]
[346965329,1735434648968,-500.0,0.0001875,2]
[346965330,1735434648978,-500.0,0.0001875,2]
[346965331,1735434648988,-500.0,0.0001875,2]
[346965332,1735434648998,-500.0,0.0001875,2]
[346965333,1735434649007,-500.0,0.0001875,2]
[346965334,1735434649018,-500.0,0.0001875,2]
[346965335,1735434649028,-500.0,0.0001875,2]
[346965336,1735434649039,-500.0,0.0001875,2]
[346965337,1735434649049,-500.0,0.0001875,2]
[346965338,1735434649060,-500.0,0.0001875,2]
[346965339,1735434649070,-500.0,0.0001875,2]
[346965340,1735434649079,-950.37,0.0001875,2]
[346965341,1735434649088,-500.0,0.0001875,2]
[346965342,1735434649098,-500.0,0.0001875,2]
[346965343,1735434649107,-151.0,0.0001875,2]
[346965344,1735434649116,-213.04,0.0001875,2]
[346965345,1735434649126,-151.0,0.0001875,2]
[346965346,1735434649136,-500.0,0.0001875,2]
[346965347,1735434649145,-500.0,0.0001875,2]
[346965348,1735434649155,-500.0,0.0001875,2]
[346965349,1735434649164,-151.0,0.0001875,2]
[346965350,1735434649174,-500.0,0.0001875,2]
[346965351,1735434649183,-151.0,0.0001875,2]
[346965352,1735434649192,-500.0,0.0001875,2]
[346965353,1735434649202,-500.0,0.0001875,2]
[346965354,1735434649211,-500.0,0.0001875,2]
[346965355,1735434649220,-500.0,0.0001875,2]
[346965356,1735434649229,-151.0,0.0001875,2]
[346965357,1735434649238,-151.0,0.0001875,2]
[346965358,1735434649247,-151.0,0.0001875,2]
[346965359,1735434649257,-199.019159,0.0001875,2]
[346965360,1735434649266,-199.019159,0.0001875,2]
[346965361,1735434649275,-151.904244,0.0001875,2]
[346965362,1735434649284,-151.0,0.0001875,2]
[346965363,1735434649294,-151.0,0.0001875,2]
[346965364,1735434649303,-151.0,0.0001875,2]
[346965365,1735434649312,-151.0,0.0001875,2]
[346965366,1735434649321,-151.0,0.0001875,2]
[346965367,1735434649330,-242.33536,0.0001875,2]
[346965368,1735434649340,-500.0,0.0001875,2]
[346965369,1735434649349,-500.0,0.0001875,2]
[346965370,1735434649358,-500.0,0.0001875,2]
[346965371,1735434649367,-500.0,0.0001875,2]
[346965372,1735434649377,-500.0,0.00018751,2]
[346965373,1735434649386,-500.0,0.00018751,2]
[346965374,1735434649396,-625.12,0.00018751,2]
[346965375,1735434649405,-5769.07,0.00018751,2]
[346965376,1735434649415,-1024.17,0.00018751,2]
[346965377,1735434649424,-500.0,0.00018751,2]
[346965378,1735434649434,-2849.24,0.00018751,2]
[346965379,1735434649443,-2136.13,0.00018752,2]
[346965380,1735434649452,-740.3859287,0.00018768,2]
[346965381,1735434649461,-151.0,0.000188,2]
[346965382,1735434649471,-151.0,0.00019,2]
[346965383,1735434649480,-500.0,0.00019022,2]
[346965384,1735434649489,-500.0,0.00019022,2]
[346965385,1735434649498,-500.0,0.00019022,2]
[346965386,1735434649509,-1870.27,0.00019022,2]
[346965387,1735434649518,-500.0,0.00019022,2]
[346965388,1735434649527,-1201.7,0.00019022,2]
[346965389,1735434649536,-500.0,0.00019022,2]
[346965390,1735434649546,-500.0,0.00019022,2]
[346965391,1735434649555,-533.45,0.00019022,2]
[346965392,1735434649565,-233.29283518,0.00019022,2]
[346965393,1735434649574,-500.0,0.00019022,2]
[346965394,1735434649640,-730.7,0.00019022,2]
[346965395,1735434649650,-500.0,0.00019023,2]
[346965396,1735434649660,-500.0,0.00019023,2]
[346965397,1735434649669,-500.0,0.00019023,2]
[346965398,1735434649678,-259.8,0.00019023,2]
[346965399,1735434649687,-500.0,0.00019023,2]
[346965400,1735434649699,-500.0,0.00019023,2]
[346965401,1735434649709,-500.0,0.00019023,2]
[346965402,1735434649719,-500.0,0.00019023,2]
[346965403,1735434649728,-500.0,0.00019023,2]
[346965404,1735434649737,-505.51,0.00019023,2]
[346965405,1735434649746,-500.0,0.00019023,2]
[346965406,1735434649756,-500.0,0.00019023,2]
[346965407,1735434649765,-209.51776109,0.00019023,2]
[346965408,1735434649775,-500.0,0.00019023,2]
[346965409,1735434649785,-588.19,0.00019023,2]
[346965410,1735434649796,-500.0,0.00019023,2]
[346965411,1735434649806,-998.12,0.00019023,2]
[346965412,1735434649816,-500.0,0.00019023,2]
[346965413,1735434649827,-500.0,0.00019023,2]
[346965414,1735434649835,-627.05,0.00019023,2]
[346965415,1735434649845,-500.0,0.00019023,2]
[346965416,1735434649856,-516.57,0.00019023,2]
[346965417,1735434649868,-500.0,0.00019023,2]
[346965418,1735434649879,-670.8,0.00019023,2]
[346965419,1735434649888,-403.47684521,0.00019023,2]
[346965420,1735434649898,-409.24236008,0.00019023,2]
[346965421,1735434649907,-500.0,0.00019023,2]
[346965422,1735434649918,-500.0,0.00019023,2]
[346965423,1735434649928,-500.0,0.00019023,2]
[346965424,1735434649938,-500.0,0.00019023,2]
[346965425,1735434649948,-500.0,0.00019023,2]
[346965426,1735434649960,-500.0,0.00019023,2]
[346965427,1735434649970,-500.0,0.00019023,2]
[346965428,1735434649979,-500.0,0.00019023,2]
[346965429,1735434649991,-500.0,0.00019023,2]
[346965430,1735434650002,-500.0,0.00019023,2]
[346965431,1735434650012,-602.83,0.00019023,2]
[346965432,1735434650021,-500.0,0.00019023,2]
[346965433,1735434650030,-1375.76,0.00019023,2]
[346965434,1735434650041,-500.0,0.00019023,2]
[346965435,1735434650050,-500.0,0.00019023,2]
[346965436,1735434650062,-151.0,0.00019023,2]
[346965437,1735434650071,-599.86,0.00019023,2]
[346965438,1735434650082,-151.0,0.00019023,2]
[346965439,1735434650091,-500.0,0.00019023,2]
[346965440,1735434650101,-500.0,0.00019023,2]
[346965441,1735434650110,-366.62,0.00019023,2]
[346965442,1735434650120,-500.0,0.00019023,2]
[346965443,1735434650129,-194.486121,0.00019023,2]
[346965444,1735434650139,-194.486121,0.00019023,2]
[346965445,1735434650147,-500.0,0.00019023,2]
[346965446,1735434650156,-15672.79,0.00019023,2]
[346965447,1735434650166,-567.83913,0.00019023,2]
[346965448,1735434650175,-500.0,0.00019023,2]
[346965449,1735434650186,-567.83913,0.00019023,2]
[346965450,1735434650196,-500.0,0.00019023,2]
[346965451,1735434650205,-453.644057,0.00019023,2]
[346965452,1735434650214,-500.0,0.00019023,2]
[346965453,1735434650223,-453.644057,0.00019023,2]
[346965454,1735434650233,-500.0,0.00019023,2]
[346965455,1735434650243,-500.0,0.00019023,2]
[346965456,1735434650252,-500.0,0.00019024,2]
[346965457,1735434650262,-575.63,0.00019024,2]
[346965458,1735434650273,-500.0,0.00019024,2]
[346965459,1735434650283,-500.0,0.00019024,2]
[346965460,1735434650292,-560.5,0.00019024,2]
[346965461,1735434650302,-500.0,0.00019024,2]
[346965462,1735434650311,-500.0,0.00019024,2]
[346965463,1735434650321,-500.0,0.00019024,2]
[346965464,1735434650330,-500.0,0.00019024,2]
[346965465,1735434650339,-500.0,0.00019024,2]
[346965466,1735434650349,-500.0,0.00019024,2]
[346965467,1735434650358,-500.0,0.00019024,2]
[346965468,1735434650367,-500.0,0.00019024,2]
[346965469,1735434650376,-614.40978202,0.00019024,2]
[346965470,1735434650385,-500.0,0.00019024,2]
[346965471,1735434650394,-950.37,0.00019024,2]
[346965472,1735434650404,-555.23,0.00019024,2]
[346965473,1735434650413,-500.0,0.00019024,2]
[346965474,1735434650423,-151.0,0.00019024,2]
[346965475,1735434650432,-151.0,0.00019024,2]
[346965476,1735434650441,-500.0,0.00019024,2]
[346965477,1735434650450,-500.0,0.00019024,2]
[346965478,1735434650460,-151.0,0.00019024,2]
[346965479,1735434650469,-151.0,0.00019024,2]
[346965480,1735434650478,-151.0,0.00019024,2]
[346965481,1735434650488,-500.0,0.00019024,2]
[346965482,1735434650497,-222.109153,0.00019024,2]
[346965483,1735434650507,-222.109153,0.00019024,2]
[346965484,1735434650516,-500.0,0.00019024,2]
[346965485,1735434650525,-500.0,0.00019024,2]
[346965486,1735434650534,-500.0,0.00019024,2]
[346965487,1735434650543,-500.0,0.00019024,2]
[346965488,1735434650553,-193.49848,0.00019024,2]
[346965489,1735434650562,-193.49848,0.00019024,2]
[346965490,1735434650571,-151.0,0.00019024,2]
[346965491,1735434650581,-151.0,0.00019024,2]
[346965492,1735434650591,-183.46362,0.00019024,2]
[346965493,1735434650600,-183.46362,0.00019024,2]
[346965494,1735434650609,-184.702744,0.00019024,2]
[346965495,1735434650618,-500.0,0.00019024,2]
[346965496,1735434650627,-151.0,0.00019024,2]
[346965497,1735434650636,-500.0,0.00019024,2]
[346965498,1735434650646,-500.0,0.00019024,2]
[346965499,1735434650656,-500.0,0.00019025,2]
[346965500,1735434650716,-151.0,0.00019025,2]
[346965501,1735434650729,-500.0,0.00019025,2]
[346965502,1735434650740,-5769.07,0.00019025,2]
[346965503,1735434650750,-151.0,0.00019025,2]
[346965504,1735434650760,-151.0,0.00019025,2]
[346965505,1735434650769,-3706.1,0.00019025,2]
[346965506,1735434650778,-1024.17,0.00019025,2]
[346965507,1735434650787,-151.0,0.00019025,2]
[346965508,1735434650797,-151.0,0.00019025,2]
[346965509,1735434650806,-151.0,0.00019025,2]
[346965510,1735434650816,-151.0,0.00019025,2]
[346965511,1735434650825,-500.0,0.00019025,2]
[346965512,1735434650834,-2849.24,0.00019025,2]
[346965513,1735434650843,-2136.13,0.00019026,2]
[346965514,1735434650853,-420.0,0.00019266,2]
[346965515,1735434650862,-286.76,0.00019296,2]
[346965516,1735434650871,-500.0,0.00019296,2]
[346965517,1735434650881,-500.0,0.00019296,2]
[346965518,1735434650890,-1870.27,0.00019296,2]
[346965519,1735434650899,-500.0,0.00019296,2]
[346965520,1735434650908,-1201.7,0.00019296,2]
[346965521,1735434650918,-500.0,0.00019296,2]
[346965522,1735434650927,-500.0,0.00019296,2]
[346965523,1735434650936,-533.45,0.00019296,2]
[346965524,1735434650945,-500.0,0.00019296,2]
[346965525,1735434650955,-730.7,0.00019296,2]
[346965526,1735434650967,-500.0,0.00019297,2]
[346965527,1735434650977,-500.0,0.00019297,2]
[346965528,1735434650988,-500.0,0.00019297,2]
[346965529,1735434650998,-500.0,0.00019297,2]
[346965530,1735434651007,-450.53,0.00019297,2]
[346965531,1735434651016,-500.0,0.00019297,2]
[346965532,1735434651026,-500.0,0.00019297,2]
[346965533,1735434651036,-500.0,0.00019297,2]
[346965534,1735434651046,-500.0,0.00019297,2]
[346965535,1735434651055,-500.0,0.00019297,2]
[346965536,1735434651064,-279.11,0.00019297,2]
[346965537,1735434651074,-588.19,0.00019297,2]
[346965538,1735434651084,-500.0,0.00019297,2]
[346965539,1735434651093,-998.12,0.00019297,2]
[346965540,1735434651102,-151.0,0.00019297,2]
[346965541,1735434651112,-500.0,0.00019297,2]
[346965542,1735434651121,-500.0,0.00019297,2]
[346965543,1735434651131,-627.05,0.00019297,2]
[346965544,1735434651140,-230.953267,0.00019297,2]
[346965545,1735434651149,-151.0,0.00019297,2]
[346965546,1735434651158,-199.019159,0.00019297,2]
[346965547,1735434651167,-199.019159,0.00019297,2]
[346965548,1735434651177,-516.57,0.00019297,2]
[346965549,1735434651187,-500.0,0.00019297,2]
[346965550,1735434651205,-500.0,0.00019297,2]
[346965551,1735434651223,-670.8,0.00019297,2]
[346965552,1735434651241,-500.0,0.00019297,2]
[346965553,1735434651259,-639.87,0.00019297,2]
[346965554,1735434651277,-178.5,0.00019297,2]
[346965555,1735434651294,-500.0,0.00019297,2]
[346965556,1735434651309,-500.0,0.00019297,2]
[346965557,1735434651326,-500.0,0.00019297,2]
[346965558,1735434651340,-314.15,0.00019297,2]
[346965559,1735434651354,-1375.76,0.00019297,2]
[346965560,1735434651371,-500.0,0.00019297,2]
[346965561,1735434651388,-500.0,0.00019297,2]
[346965562,1735434651407,-500.0,0.00019297,2]
[346965563,1735434651419,-502.61058018,0.00019297,2]
[346965564,1735434651434,-506.62635381,0.00019297,2]
[346965565,1735434651451,-15672.79,0.00019297,2]
[346965566,1735434651463,-500.0,0.00019297,2]
[346965567,1735434651478,-500.0,0.00019297,2]
[346965568,1735434651491,-500.0,0.00019297,2]
[346965569,1735434651505,-500.0,0.00019298,2]
[346965570,1735434651519,-575.63,0.00019298,2]
[346965571,1735434651532,-500.0,0.00019298,2]
[346965572,1735434651546,-500.0,0.00019298,2]
[346965573,1735434651558,-560.5,0.00019298,2]
[346965574,1735434651571,-500.0,0.00019298,2]
[346965575,1735434651584,-500.0,0.00019298,2]
[346965576,1735434651597,-500.0,0.00019298,2]
[346965577,1735434651610,-500.0,0.00019298,2]
[346965578,1735434651622,-500.0,0.00019298,2]
[346965579,1735434651635,-500.0,0.00019298,2]
[346965580,1735434651648,-500.0,0.00019298,2]
[346965581,1735434651661,-500.0,0.00019298,2]
[346965582,1735434651673,-500.0,0.00019298,2]
[346965583,1735434651687,-950.37,0.00019298,2]
[346965584,1735434651700,-500.0,0.00019298,2]
[346965585,1735434651713,-151.0,0.00019298,2]
[346965586,1735434651725,-151.0,0.00019298,2]
[346965587,1735434651739,-500.0,0.00019298,2]
[346965588,1735434651752,-500.0,0.00019298,2]
[346965589,1735434651765,-500.0,0.00019298,2]
[346965590,1735434651778,-500.0,0.00019298,2]
[346965591,1735434651791,-500.0,0.00019298,2]
[346965592,1735434651804,-500.0,0.00019298,2]
[346965593,1735434651817,-188.43,0.00019298,2]
[346965594,1735434651830,-500.0,0.00019298,2]
[346965595,1735434651844,-500.0,0.00019298,2]
[346965596,1735434651857,-500.0,0.00019298,2]
[346965597,1735434651867,-569.21,0.00019299,2]
[346965598,1735434651945,-500.0,0.00019299,2]
[346965599,1735434651975,-5769.07,0.00019299,2]
[346965600,1735434651985,-1024.17,0.00019299,2]
[346965601,1735434651995,-500.0,0.00019299,2]
[346965602,1735434652004,-2849.24,0.00019299,2]
[346965603,1735434652013,-151.0,0.000193,2]
[346965604,1735434652023,-151.0,0.000193,2]
[346965605,1735434652032,-151.0,0.000193,2]
[346965606,1735434652041,-151.0,0.000193,2]
[346965607,1735434652051,-2136.13,0.000193,2]
[346965608,1735434652060,-625.27,0.0001957,2]
[346965609,1735434652070,-500.0,0.0001957,2]
[346965610,1735434652079,-1870.27,0.0001957,2]
[346965611,1735434652088,-500.0,0.0001957,2]
[346965612,1735434652097,-1201.7,0.0001957,2]
[346965613,1735434652107,-193.05083744,0.0001957,2]
[346965614,1735434652116,-500.0,0.0001957,2]
[346965615,1735434652125,-533.45,0.0001957,2]
[346965616,1735434652134,-500.0,0.0001957,2]
[346965617,1735434652143,-534.0,0.00019571,2]
[346965618,1735434652153,-2352.0,0.00019571,2]
[346965619,1735434652162,-500.0,0.00019571,2]
[346965620,1735434652171,-415.88,0.00019571,2]
[346965621,1735434652181,-500.0,0.00019571,2]
[346965622,1735434652190,-500.0,0.00019571,2]
[346965623,1735434652199,-500.0,0.00019571,2]
[346965624,1735434652209,-500.0,0.00019571,2]
[346965625,1735434652218,-500.0,0.00019571,2]
[346965626,1735434652227,-151.0,0.00019571,2]